[Event "Titled Tuesday Blitz April 4 Late 2023"]
[White "Bellahcene, Bilel"]
[Black "Ezat, Mohamed"]
[WhiteFideId "696358"]
[BlackFideId "10600906"]
[WhiteElo "2566"]
[BlackElo "2386"]
[Result "0-1"]
[Round "06"]
[TimeControl "180+2"]
[Date "2023.04.04"]
[WhiteClock "0:00:01"]
[BlackClock "0:00:23"]

1. e4 {[%clk 0:02:40]}  e5 {[%clk 0:03:00]} 2. Nf3 {[%clk 0:02:35]}  Nc6 {[%clk 0:03:00]} 3. Bb5 {[%clk 0:02:31]}  Nge7 {[%clk 0:03:00]} 4. O-O {[%clk 0:02:26]}  a6 {[%clk 0:02:58]} 5. Ba4 {[%clk 0:02:25]}  g6 {[%clk 0:02:56]} 6. c3 {[%clk 0:02:25]}  Bg7 {[%clk 0:02:54]} 7. d4 {[%clk 0:02:26]}  exd4 {[%clk 0:02:55]} 8. cxd4 {[%clk 0:02:27]}  b5 {[%clk 0:02:55]} 9. Bb3 {[%clk 0:02:24]}  O-O {[%clk 0:02:55]} 10. d5 {[%clk 0:02:25]}  Na5 {[%clk 0:02:52]} 11. Bc2 {[%clk 0:02:25]}  d6 {[%clk 0:02:51]} 12. Bd2 {[%clk 0:02:25]}  Nc4 {[%clk 0:02:45]} 13. Bc3 {[%clk 0:02:25]}  Nxb2 {[%clk 0:02:39]} 14. Qc1 {[%clk 0:02:07]}  Nc4 {[%clk 0:02:16]} 15. Bxg7 {[%clk 0:02:05]}  Kxg7 {[%clk 0:02:16]} 16. Bd3 {[%clk 0:02:06]}  Ne5 {[%clk 0:02:12]} 17. Qc3 {[%clk 0:02:04]}  f6 {[%clk 0:02:12]} 18. Nxe5 {[%clk 0:01:56]}  fxe5 {[%clk 0:02:12]} 19. f4 {[%clk 0:01:50]}  b4 {[%clk 0:01:42]} 20. Qb2 {[%clk 0:01:47]}  Kg8 {[%clk 0:01:34]} 21. fxe5 {[%clk 0:01:45]}  Rxf1+ {[%clk 0:01:33]} 22. Bxf1 {[%clk 0:01:45]}  dxe5 {[%clk 0:01:34]} 23. Qxe5 {[%clk 0:01:46]}  Qd6 {[%clk 0:01:34]} 24. Qxd6 {[%clk 0:01:37]}  cxd6 {[%clk 0:01:33]} 25. Nd2 {[%clk 0:01:38]}  a5 {[%clk 0:01:33]} 26. Nc4 {[%clk 0:01:39]}  Ra6 {[%clk 0:01:24]} 27. Rc1 {[%clk 0:01:33]}  a4 {[%clk 0:01:24]} 28. Ne3 {[%clk 0:01:23]}  Rb6 {[%clk 0:01:19]} 29. Rc7 {[%clk 0:01:17]}  Kf8 {[%clk 0:01:16]} 30. Nc4 {[%clk 0:00:53]}  Ra6 {[%clk 0:01:16]} 31. Ne5 {[%clk 0:00:33]}  Ra8 {[%clk 0:00:59]} 32. Nc4 {[%clk 0:00:27]}  b3 {[%clk 0:00:57]} 33. a3 {[%clk 0:00:25]}  Rb8 {[%clk 0:00:47]} 34. Nb2 {[%clk 0:00:25]}  Ke8 {[%clk 0:00:37]} 35. Bd3 {[%clk 0:00:10]}  Bd7 {[%clk 0:00:36]} 36. Kf2 {[%clk 0:00:09]}  g5 {[%clk 0:00:32]} 37. e5 {[%clk 0:00:07]}  Nxd5 {[%clk 0:00:30]} 38. Ra7 {[%clk 0:00:05]}  dxe5 {[%clk 0:00:24]} 39. Bxh7 {[%clk 0:00:05]}  Nf6 {[%clk 0:00:24]} 40. Bg6+ {[%clk 0:00:04]}  Kd8 {[%clk 0:00:25]} 41. Ke3 {[%clk 0:00:03]}  Rc8 {[%clk 0:00:24]} 42. Rb7 {[%clk 0:00:01]}  e4 {[%clk 0:00:23]} 43. Bxe4 {[%clk 0:00:01]}  Nxe4 {[%clk 0:00:23]} 0-1


[Site "https://www.chess.com"]

[Event "Titled Tuesday Blitz April 4 Late 2023"]
[White "Goffredo_Fofi"]
[Black "Jaracz, Pawel"]
[BlackFideId "1102222"]
[WhiteElo "2512"]
[BlackElo "2438"]
[Result "0-1"]
[Round "06"]
[TimeControl "180+2"]
[Date "2023.04.04"]
[WhiteClock "0:00:21"]
[BlackClock "0:00:23"]

1. d4 {[%clk 0:03:00]}  d6 {[%clk 0:02:59]} 2. Nf3 {[%clk 0:03:00]}  Bg4 {[%clk 0:02:58]} 3. c4 {[%clk 0:03:01]}  Nd7 {[%clk 0:02:56]} 4. Nc3 {[%clk 0:02:57]}  g6 {[%clk 0:02:55]} 5. e4 {[%clk 0:02:50]}  Bg7 {[%clk 0:02:55]} 6. Be3 {[%clk 0:02:51]}  e5 {[%clk 0:02:54]} 7. d5 {[%clk 0:02:45]}  Ne7 {[%clk 0:02:53]} 8. Be2 {[%clk 0:02:45]}  Bxf3 {[%clk 0:02:48]} 9. Bxf3 {[%clk 0:02:44]}  O-O {[%clk 0:02:48]} 10. g4 {[%clk 0:02:32]}  f5 {[%clk 0:02:44]} 11. gxf5 {[%clk 0:02:33]}  gxf5 {[%clk 0:02:44]} 12. Rg1 {[%clk 0:02:34]}  Kh8 {[%clk 0:02:36]} 13. Qe2 {[%clk 0:02:08]}  Nf6 {[%clk 0:02:28]} 14. O-O-O {[%clk 0:02:01]}  f4 {[%clk 0:02:07]} 15. Bd2 {[%clk 0:02:01]}  c5 {[%clk 0:02:06]} 16. Bg4 {[%clk 0:01:43]}  Nxg4 {[%clk 0:02:05]} 17. Rxg4 {[%clk 0:01:44]}  a6 {[%clk 0:01:55]} 18. Rdg1 {[%clk 0:01:40]}  Bf6 {[%clk 0:01:55]} 19. Kb1 {[%clk 0:01:04]}  Qe8 {[%clk 0:01:55]} 20. Ka1 {[%clk 0:01:03]}  Rb8 {[%clk 0:01:45]} 21. Bc1 {[%clk 0:01:03]}  b5 {[%clk 0:01:45]} 22. Nd1 {[%clk 0:01:01]}  Rg8 {[%clk 0:01:18]} 23. f3 {[%clk 0:00:53]}  Rxg4 {[%clk 0:01:11]} 24. Rxg4 {[%clk 0:00:53]}  bxc4 {[%clk 0:01:07]} 25. Qxc4 {[%clk 0:00:52]}  Qb5 {[%clk 0:00:56]} 26. b3 {[%clk 0:00:52]}  Ng6 {[%clk 0:00:55]} 27. Rg1 {[%clk 0:00:35]}  Nh4 {[%clk 0:00:51]} 28. Rf1 {[%clk 0:00:35]}  Rg8 {[%clk 0:00:50]} 29. Bd2 {[%clk 0:00:25]}  Rg2 {[%clk 0:00:46]} 30. Be1 {[%clk 0:00:25]}  Qxc4 {[%clk 0:00:37]} 31. bxc4 {[%clk 0:00:25]}  Rxh2 {[%clk 0:00:37]} 32. Bxh4 {[%clk 0:00:21]}  Bxh4 {[%clk 0:00:36]} 33. Kb1 {[%clk 0:00:22]}  h5 {[%clk 0:00:26]} 34. Nc3 {[%clk 0:00:22]}  Bf2 {[%clk 0:00:24]} 35. Na4 {[%clk 0:00:21]}  Bd4 {[%clk 0:00:24]} 36. Nb6 {[%clk 0:00:21]}  Rb2+ {[%clk 0:00:23]} 0-1


[Site "https://www.chess.com"]

[Event "Titled Tuesday Blitz April 4 Late 2023"]
[White "Koutlas, Nikolaos"]
[Black "Gegenfurtner, Juergen"]
[WhiteFideId "25827138"]
[BlackFideId "24632147"]
[WhiteElo "2215"]
[BlackElo "2398"]
[Result "0-1"]
[Round "06"]
[TimeControl "180+2"]
[Date "2023.04.04"]
[WhiteClock "0:00:02"]
[BlackClock "0:00:03"]

1. e3 {[%clk 0:02:58]}  d5 {[%clk 0:02:59]} 2. c4 {[%clk 0:02:56]}  e6 {[%clk 0:02:59]} 3. d4 {[%clk 0:02:50]}  Nf6 {[%clk 0:02:59]} 4. Nc3 {[%clk 0:02:50]}  Nbd7 {[%clk 0:02:59]} 5. Nf3 {[%clk 0:02:51]}  Be7 {[%clk 0:02:57]} 6. Bd3 {[%clk 0:02:50]}  O-O {[%clk 0:02:57]} 7. O-O {[%clk 0:02:50]}  dxc4 {[%clk 0:02:56]} 8. Bxc4 {[%clk 0:02:50]}  a6 {[%clk 0:02:57]} 9. a4 {[%clk 0:02:49]}  c5 {[%clk 0:02:57]} 10. b3 {[%clk 0:02:47]}  cxd4 {[%clk 0:02:53]} 11. Nxd4 {[%clk 0:02:45]}  Ne5 {[%clk 0:02:38]} 12. Be2 {[%clk 0:02:43]}  Bd7 {[%clk 0:02:39]} 13. Bb2 {[%clk 0:02:42]}  Rc8 {[%clk 0:02:38]} 14. Rc1 {[%clk 0:02:41]}  Qa5 {[%clk 0:02:36]} 15. h3 {[%clk 0:02:39]}  Rfd8 {[%clk 0:02:36]} 16. Qd2 {[%clk 0:02:32]}  Bb4 {[%clk 0:02:35]} 17. Rfd1 {[%clk 0:02:24]}  Ne4 {[%clk 0:02:21]} 18. Nxe4 {[%clk 0:02:20]}  Bxd2 {[%clk 0:02:20]} 19. Rxc8 {[%clk 0:02:19]}  Bxc8 {[%clk 0:02:02]} 20. Rxd2 {[%clk 0:02:18]}  Nc6 {[%clk 0:01:42]} 21. Bc3 {[%clk 0:01:58]}  Qc7 {[%clk 0:01:36]} 22. Bc4 {[%clk 0:01:42]}  Ne5 {[%clk 0:01:25]} 23. Nxe6 {[%clk 0:01:36]}  Bxe6 {[%clk 0:01:03]} 24. Bxe5 {[%clk 0:01:33]}  Qc8 {[%clk 0:00:47]} 25. Nd6 {[%clk 0:01:21]}  Qd7 {[%clk 0:00:41]} 26. Rd4 {[%clk 0:01:06]}  Bxc4 {[%clk 0:00:31]} 27. Nxb7 {[%clk 0:01:02]}  Qxd4 {[%clk 0:00:21]} 28. exd4 {[%clk 0:00:48]}  Rd7 {[%clk 0:00:20]} 29. bxc4 {[%clk 0:00:43]}  Rxb7 {[%clk 0:00:20]} 30. c5 {[%clk 0:00:39]}  Rb1+ {[%clk 0:00:19]} 31. Kh2 {[%clk 0:00:39]}  Rc1 {[%clk 0:00:20]} 32. Bd6 {[%clk 0:00:35]}  f6 {[%clk 0:00:20]} 33. d5 {[%clk 0:00:30]}  Kf7 {[%clk 0:00:20]} 34. c6 {[%clk 0:00:30]}  Ke8 {[%clk 0:00:21]} 35. Bc7 {[%clk 0:00:29]}  Rc4 {[%clk 0:00:20]} 36. a5 {[%clk 0:00:29]}  Rc5 {[%clk 0:00:20]} 37. Bb6 {[%clk 0:00:21]}  Rxd5 {[%clk 0:00:20]} 38. Kg3 {[%clk 0:00:22]}  Re5 {[%clk 0:00:18]} 39. Kf4 {[%clk 0:00:21]}  g5+ {[%clk 0:00:17]} 40. Kg4 {[%clk 0:00:20]}  Kf7 {[%clk 0:00:14]} 41. f4 {[%clk 0:00:19]}  Re4 {[%clk 0:00:13]} 42. g3 {[%clk 0:00:17]}  Kg6 {[%clk 0:00:09]} 43. Kf3 {[%clk 0:00:14]}  Rc4 {[%clk 0:00:10]} 44. c7 {[%clk 0:00:13]}  gxf4 {[%clk 0:00:09]} 45. gxf4 {[%clk 0:00:11]}  Kf5 {[%clk 0:00:09]} 46. Ke3 {[%clk 0:00:12]}  Ke6 {[%clk 0:00:09]} 47. Kd3 {[%clk 0:00:10]}  Kd5 {[%clk 0:00:09]} 48. Ke3 {[%clk 0:00:08]}  f5 {[%clk 0:00:10]} 49. Kd3 {[%clk 0:00:08]}  h5 {[%clk 0:00:09]} 50. h4 {[%clk 0:00:07]}  Rc6 {[%clk 0:00:09]} 51. Ke3 {[%clk 0:00:06]}  Rc3+ {[%clk 0:00:09]} 52. Kd2 {[%clk 0:00:07]}  Rc4 {[%clk 0:00:09]} 53. Kd3 {[%clk 0:00:07]}  Rc6 {[%clk 0:00:09]} 54. Ke3 {[%clk 0:00:07]}  Re6+ {[%clk 0:00:05]} 55. Kd3 {[%clk 0:00:07]}  Re8 {[%clk 0:00:06]} 56. Bd4 {[%clk 0:00:05]}  Kc6 {[%clk 0:00:06]} 57. Be5 {[%clk 0:00:05]}  Kd7 {[%clk 0:00:06]} 58. Kd4 {[%clk 0:00:05]}  Rg8 {[%clk 0:00:06]} 59. Kd5 {[%clk 0:00:05]}  Rg4 {[%clk 0:00:06]} 60. Kc5 {[%clk 0:00:05]}  Rxh4 {[%clk 0:00:06]} 61. Kb6 {[%clk 0:00:05]}  Rh1 {[%clk 0:00:06]} 62. Kxa6 {[%clk 0:00:04]}  Rb1 {[%clk 0:00:07]} 63. Bf6 {[%clk 0:00:02]}  Kxc7 {[%clk 0:00:06]} 64. Ka7 {[%clk 0:00:03]}  Rb3 {[%clk 0:00:04]} 65. a6 {[%clk 0:00:03]}  Ra3 {[%clk 0:00:03]} 66. Be5+ {[%clk 0:00:02]}  Kc6 {[%clk 0:00:04]} 67. Bf6 {[%clk 0:00:02]}  Ra4 {[%clk 0:00:04]} 68. Bd8 {[%clk 0:00:01]}  Rxf4 {[%clk 0:00:03]} 69. Kb8 {[%clk 0:00:02]}  Rb4+ {[%clk 0:00:03]} 70. Kc8 {[%clk 0:00:02]}  Ra4 {[%clk 0:00:04]} 71. Bb6 {[%clk 0:00:02]}  Rxa6 {[%clk 0:00:03]} 0-1


[Site "https://www.chess.com"]

[Event "Titled Tuesday Blitz April 4 Late 2023"]
[White "Przybylski, Wojciech"]
[Black "Perske, Thore"]
[WhiteFideId "1117599"]
[BlackFideId "12902195"]
[WhiteElo "2222"]
[BlackElo "2336"]
[Result "1-0"]
[Round "06"]
[TimeControl "180+2"]
[Date "2023.04.04"]
[WhiteClock "0:00:03"]
[BlackClock "0:00:07"]

1. e4 {[%clk 0:03:00]}  c6 {[%clk 0:02:58]} 2. d4 {[%clk 0:02:59]}  d5 {[%clk 0:02:58]} 3. e5 {[%clk 0:03:00]}  Bf5 {[%clk 0:02:58]} 4. Nf3 {[%clk 0:03:00]}  e6 {[%clk 0:02:58]} 5. c4 {[%clk 0:02:59]}  Nd7 {[%clk 0:02:53]} 6. Nc3 {[%clk 0:02:58]}  Bb4 {[%clk 0:02:52]} 7. a3 {[%clk 0:02:54]}  Bxc3+ {[%clk 0:02:51]} 8. bxc3 {[%clk 0:02:55]}  Ne7 {[%clk 0:02:48]} 9. Be2 {[%clk 0:02:51]}  dxc4 {[%clk 0:02:48]} 10. O-O {[%clk 0:02:50]}  b5 {[%clk 0:02:46]} 11. Nh4 {[%clk 0:02:49]}  Nb6 {[%clk 0:02:39]} 12. Nxf5 {[%clk 0:02:47]}  Nxf5 {[%clk 0:02:40]} 13. Bf3 {[%clk 0:02:46]}  Nd5 {[%clk 0:02:40]} 14. Bd2 {[%clk 0:02:44]}  Nh4 {[%clk 0:02:21]} 15. Be4 {[%clk 0:02:42]}  Ng6 {[%clk 0:02:18]} 16. Qh5 {[%clk 0:02:31]}  Qh4 {[%clk 0:02:11]} 17. Qf3 {[%clk 0:02:18]}  a5 {[%clk 0:01:47]} 18. Rfb1 {[%clk 0:01:59]}  O-O {[%clk 0:01:44]} 19. g3 {[%clk 0:01:53]}  Qd8 {[%clk 0:01:40]} 20. h4 {[%clk 0:01:52]}  Qd7 {[%clk 0:01:34]} 21. h5 {[%clk 0:01:50]}  Nge7 {[%clk 0:01:34]} 22. h6 {[%clk 0:01:45]}  g6 {[%clk 0:01:33]} 23. Bg5 {[%clk 0:01:40]}  Rfb8 {[%clk 0:01:29]} 24. Bd2 {[%clk 0:01:09]}  Nf5 {[%clk 0:01:23]} 25. g4 {[%clk 0:01:08]}  Nfe7 {[%clk 0:01:19]} 26. Qg3 {[%clk 0:01:02]}  Qd8 {[%clk 0:01:18]} 27. f4 {[%clk 0:01:01]}  b4 {[%clk 0:01:16]} 28. axb4 {[%clk 0:00:53]}  axb4 {[%clk 0:01:16]} 29. Rxa8 {[%clk 0:00:53]}  Rxa8 {[%clk 0:01:17]} 30. cxb4 {[%clk 0:00:52]}  Nxb4 {[%clk 0:01:09]} 31. Rxb4 {[%clk 0:00:41]}  Qxd4+ {[%clk 0:01:08]} 32. Qe3 {[%clk 0:00:41]}  Ra1+ {[%clk 0:00:52]} 33. Rb1 {[%clk 0:00:27]}  Rxb1+ {[%clk 0:00:51]} 34. Bxb1 {[%clk 0:00:27]}  Qb2 {[%clk 0:00:48]} 35. Be4 {[%clk 0:00:25]}  Nd5 {[%clk 0:00:46]} 36. Bxd5 {[%clk 0:00:25]}  exd5 {[%clk 0:00:43]} 37. Qa7 {[%clk 0:00:17]}  Qb1+ {[%clk 0:00:35]} 38. Kh2 {[%clk 0:00:15]}  Kf8 {[%clk 0:00:31]} 39. Be3 {[%clk 0:00:08]}  Qc2+ {[%clk 0:00:26]} 40. Kg3 {[%clk 0:00:07]}  d4 {[%clk 0:00:25]} 41. Bxd4 {[%clk 0:00:06]}  Qd3+ {[%clk 0:00:25]} 42. Kh4 {[%clk 0:00:05]}  Ke8 {[%clk 0:00:19]} 43. Bc5 {[%clk 0:00:05]}  Qd8+ {[%clk 0:00:17]} 44. g5 {[%clk 0:00:03]}  Qd2 {[%clk 0:00:07]} 45. Qe7# {[%clk 0:00:03]} 1-0


[Site "https://www.chess.com"]

[Event "Titled Tuesday Blitz April 4 Late 2023"]
[White "Papp, Levente"]
[Black "Prydun, Andriy"]
[WhiteFideId "751243"]
[BlackFideId "14145898"]
[WhiteElo "2380"]
[BlackElo "2164"]
[Result "1-0"]
[Round "06"]
[TimeControl "180+2"]
[Date "2023.04.04"]
[WhiteClock "0:00:57"]
[BlackClock "0:01:15"]

1. b3 {[%clk 0:03:00]}  b5 {[%clk 0:02:55]} 2. Bb2 {[%clk 0:02:55]}  Bb7 {[%clk 0:02:54]} 3. e3 {[%clk 0:02:54]}  b4 {[%clk 0:02:53]} 4. Nf3 {[%clk 0:02:52]}  Nf6 {[%clk 0:02:53]} 5. a3 {[%clk 0:02:50]}  e6 {[%clk 0:02:52]} 6. Be2 {[%clk 0:02:48]}  a5 {[%clk 0:02:51]} 7. O-O {[%clk 0:02:46]}  Be7 {[%clk 0:02:51]} 8. axb4 {[%clk 0:02:33]}  axb4 {[%clk 0:02:52]} 9. Rxa8 {[%clk 0:02:33]}  Bxa8 {[%clk 0:02:51]} 10. d4 {[%clk 0:02:18]}  Bxf3 {[%clk 0:02:38]} 11. Bxf3 {[%clk 0:02:18]}  d5 {[%clk 0:02:37]} 12. Qd3 {[%clk 0:02:12]}  O-O {[%clk 0:02:36]} 13. c4 {[%clk 0:02:01]}  c6 {[%clk 0:02:25]} 14. Nd2 {[%clk 0:01:54]}  Qb6 {[%clk 0:02:25]} 15. c5 {[%clk 0:01:53]}  Qb5 {[%clk 0:02:18]} 16. Qxb5 {[%clk 0:01:52]}  cxb5 {[%clk 0:02:19]} 17. Be2 {[%clk 0:01:52]}  Nc6 {[%clk 0:02:16]} 18. Bxb5 {[%clk 0:01:52]}  Na5 {[%clk 0:02:16]} 19. Ra1 {[%clk 0:01:51]}  Nb7 {[%clk 0:02:15]} 20. Ra7 {[%clk 0:01:50]}  Nxc5 {[%clk 0:02:13]} 21. Rxe7 {[%clk 0:01:46]}  Nce4 {[%clk 0:02:10]} 22. Nxe4 {[%clk 0:01:44]}  Nxe4 {[%clk 0:02:11]} 23. Bd3 {[%clk 0:01:26]}  Nd2 {[%clk 0:02:07]} 24. Rb7 {[%clk 0:01:25]}  Nxb3 {[%clk 0:01:50]} 25. Rxb4 {[%clk 0:01:24]}  Nd2 {[%clk 0:01:50]} 26. Bc3 {[%clk 0:01:20]}  Ne4 {[%clk 0:01:45]} 27. Bxe4 {[%clk 0:01:20]}  dxe4 {[%clk 0:01:46]} 28. f3 {[%clk 0:01:19]}  exf3 {[%clk 0:01:45]} 29. gxf3 {[%clk 0:01:20]}  h5 {[%clk 0:01:42]} 30. Rb2 {[%clk 0:01:18]}  Rc8 {[%clk 0:01:42]} 31. Bb4 {[%clk 0:01:18]}  Rb8 {[%clk 0:01:38]} 32. Kf2 {[%clk 0:01:18]}  Kh7 {[%clk 0:01:38]} 33. e4 {[%clk 0:01:18]}  Kh6 {[%clk 0:01:32]} 34. Ke3 {[%clk 0:01:17]}  Rb7 {[%clk 0:01:29]} 35. d5 {[%clk 0:01:17]}  exd5 {[%clk 0:01:24]} 36. exd5 {[%clk 0:01:18]}  Kg6 {[%clk 0:01:24]} 37. Kd4 {[%clk 0:01:17]}  Kf5 {[%clk 0:01:25]} 38. Bc3 {[%clk 0:01:12]}  Ra7 {[%clk 0:01:23]} 39. d6 {[%clk 0:01:04]}  Ke6 {[%clk 0:01:22]} 40. Kc5 {[%clk 0:01:04]}  Ra3 {[%clk 0:01:18]} 41. Re2+ {[%clk 0:01:03]}  Kd7 {[%clk 0:01:18]} 42. Re7+ {[%clk 0:01:02]}  Kc8 {[%clk 0:01:16]} 43. Bxg7 {[%clk 0:00:58]}  Rxf3 {[%clk 0:01:15]} 44. Kc6 {[%clk 0:00:57]} 1-0


[Site "https://www.chess.com"]

[Event "Titled Tuesday Blitz April 4 Late 2023"]
[White "Santos Flores, Alberto"]
[Black "Alex_Sahakyan2006"]
[WhiteFideId "3601234"]
[WhiteElo "2235"]
[BlackElo "2620"]
[Result "0-1"]
[Round "06"]
[TimeControl "180+2"]
[Date "2023.04.04"]
[WhiteClock "0:00:01"]
[BlackClock "0:00:41"]

1. d4 {[%clk 0:03:00]}  Nf6 {[%clk 0:02:59]} 2. Bf4 {[%clk 0:03:00]}  d6 {[%clk 0:02:58]} 3. Nc3 {[%clk 0:02:55]}  g6 {[%clk 0:02:57]} 4. e4 {[%clk 0:02:55]}  Bg7 {[%clk 0:02:57]} 5. Qd2 {[%clk 0:02:55]}  h5 {[%clk 0:02:54]} 6. Bd3 {[%clk 0:02:50]}  h4 {[%clk 0:02:51]} 7. h3 {[%clk 0:02:47]}  Nh5 {[%clk 0:02:50]} 8. Be3 {[%clk 0:02:46]}  Nc6 {[%clk 0:02:50]} 9. Nf3 {[%clk 0:02:45]}  e5 {[%clk 0:02:45]} 10. d5 {[%clk 0:02:32]}  Nd4 {[%clk 0:02:44]} 11. Be2 {[%clk 0:02:25]}  Nxf3+ {[%clk 0:02:34]} 12. Bxf3 {[%clk 0:02:25]}  Nf4 {[%clk 0:02:35]} 13. Bxf4 {[%clk 0:02:13]}  exf4 {[%clk 0:02:36]} 14. Qxf4 {[%clk 0:02:14]}  Be5 {[%clk 0:02:35]} 15. Qe3 {[%clk 0:02:12]}  Qf6 {[%clk 0:02:33]} 16. Bg4 {[%clk 0:01:45]}  Bxg4 {[%clk 0:02:30]} 17. hxg4 {[%clk 0:01:45]}  a6 {[%clk 0:02:29]} 18. Qf3 {[%clk 0:01:38]}  Qg5 {[%clk 0:02:28]} 19. Nd1 {[%clk 0:01:31]}  O-O-O {[%clk 0:02:23]} 20. c3 {[%clk 0:01:26]}  Rde8 {[%clk 0:02:11]} 21. Ne3 {[%clk 0:01:26]}  Bf4 {[%clk 0:02:11]} 22. O-O-O {[%clk 0:01:22]}  f5 {[%clk 0:02:10]} 23. gxf5 {[%clk 0:01:19]}  gxf5 {[%clk 0:02:10]} 24. g3 {[%clk 0:00:43]}  hxg3 {[%clk 0:02:04]} 25. Rxh8 {[%clk 0:00:41]}  Rxh8 {[%clk 0:02:00]} 26. Kb1 {[%clk 0:00:31]}  fxe4 {[%clk 0:01:53]} 27. Qxe4 {[%clk 0:00:30]}  gxf2 {[%clk 0:01:48]} 28. Nf1 {[%clk 0:00:20]}  Qe5 {[%clk 0:01:33]} 29. Qd3 {[%clk 0:00:14]}  Kb8 {[%clk 0:01:27]} 30. Qf3 {[%clk 0:00:13]}  Qh5 {[%clk 0:01:15]} 31. Qd3 {[%clk 0:00:12]}  Re8 {[%clk 0:01:13]} 32. a3 {[%clk 0:00:06]}  Re1 {[%clk 0:01:12]} 33. Kc2 {[%clk 0:00:06]}  Qh1 {[%clk 0:00:56]} 34. c4 {[%clk 0:00:03]}  b6 {[%clk 0:00:53]} 35. a4 {[%clk 0:00:03]}  a5 {[%clk 0:00:52]} 36. b3 {[%clk 0:00:03]}  Be5 {[%clk 0:00:49]} 37. Kc1 {[%clk 0:00:03]}  Qh6+ {[%clk 0:00:43]} 38. Kc2 {[%clk 0:00:03]}  Bg7 {[%clk 0:00:43]} 39. Nd2 {[%clk 0:00:01]}  Qf6 {[%clk 0:00:41]} 0-1


[Site "https://www.chess.com"]

[Event "Titled Tuesday Blitz April 4 Late 2023"]
[White "Erzhanov, Arman"]
[Black "Ehlvest, Jaan"]
[WhiteFideId "4138821"]
[BlackFideId "4500016"]
[WhiteElo "2138"]
[BlackElo "2442"]
[Result "0-1"]
[Round "06"]
[TimeControl "180+2"]
[Date "2023.04.04"]
[WhiteClock "0:00:03"]
[BlackClock "0:00:05"]

1. e4 {[%clk 0:02:57]}  c5 {[%clk 0:02:59]} 2. Nf3 {[%clk 0:02:56]}  Nc6 {[%clk 0:02:59]} 3. Bb5 {[%clk 0:02:57]}  g6 {[%clk 0:02:58]} 4. O-O {[%clk 0:02:56]}  Bg7 {[%clk 0:02:57]} 5. c3 {[%clk 0:02:57]}  Nf6 {[%clk 0:02:56]} 6. Qa4 {[%clk 0:02:57]}  O-O {[%clk 0:02:41]} 7. d4 {[%clk 0:02:58]}  cxd4 {[%clk 0:02:29]} 8. cxd4 {[%clk 0:02:59]}  d5 {[%clk 0:02:21]} 9. e5 {[%clk 0:02:59]}  Ne4 {[%clk 0:02:20]} 10. Bxc6 {[%clk 0:02:59]}  bxc6 {[%clk 0:02:20]} 11. Qxc6 {[%clk 0:03:00]}  Bg4 {[%clk 0:02:15]} 12. Nbd2 {[%clk 0:03:00]}  Rc8 {[%clk 0:02:12]} 13. Qa4 {[%clk 0:03:01]}  Qb6 {[%clk 0:02:09]} 14. h3 {[%clk 0:02:47]}  Bf5 {[%clk 0:02:09]} 15. Qb3 {[%clk 0:02:17]}  Qa5 {[%clk 0:01:59]} 16. Nxe4 {[%clk 0:01:44]}  dxe4 {[%clk 0:01:55]} 17. Nh2 {[%clk 0:01:38]}  Be6 {[%clk 0:01:50]} 18. Qd1 {[%clk 0:01:25]}  f5 {[%clk 0:01:42]} 19. Bd2 {[%clk 0:01:20]}  Qd5 {[%clk 0:01:37]} 20. Bc3 {[%clk 0:01:20]}  f4 {[%clk 0:01:33]} 21. Re1 {[%clk 0:01:17]}  Bd7 {[%clk 0:01:13]} 22. Qb3 {[%clk 0:01:11]}  Bc6 {[%clk 0:01:12]} 23. Qxd5+ {[%clk 0:01:10]}  Bxd5 {[%clk 0:01:12]} 24. Nf1 {[%clk 0:01:09]}  Bh6 {[%clk 0:00:49]} 25. Nd2 {[%clk 0:01:06]}  e3 {[%clk 0:00:47]} 26. Nf3 {[%clk 0:01:04]}  e6 {[%clk 0:00:36]} 27. Nh2 {[%clk 0:00:47]}  exf2+ {[%clk 0:00:29]} 28. Kxf2 {[%clk 0:00:47]}  Bg5 {[%clk 0:00:29]} 29. Nf3 {[%clk 0:00:44]}  Be7 {[%clk 0:00:29]} 30. Rac1 {[%clk 0:00:38]}  g5 {[%clk 0:00:29]} 31. a3 {[%clk 0:00:27]}  h5 {[%clk 0:00:26]} 32. Bb4 {[%clk 0:00:25]}  Bxb4 {[%clk 0:00:23]} 33. axb4 {[%clk 0:00:25]}  g4 {[%clk 0:00:23]} 34. hxg4 {[%clk 0:00:22]}  hxg4 {[%clk 0:00:22]} 35. Ng5 {[%clk 0:00:14]}  Rb8 {[%clk 0:00:17]} 36. Ne4 {[%clk 0:00:12]}  Rxb4 {[%clk 0:00:14]} 37. Nf6+ {[%clk 0:00:12]}  Kg7 {[%clk 0:00:14]} 38. Rc7+ {[%clk 0:00:11]}  Rf7 {[%clk 0:00:13]} 39. Rxf7+ {[%clk 0:00:08]}  Kxf7 {[%clk 0:00:13]} 40. Nxg4 {[%clk 0:00:08]}  Rxd4 {[%clk 0:00:10]} 41. Nf6 {[%clk 0:00:05]}  Rd2+ {[%clk 0:00:09]} 42. Re2 {[%clk 0:00:06]}  Rxe2+ {[%clk 0:00:09]} 43. Kxe2 {[%clk 0:00:06]}  Bxg2 {[%clk 0:00:10]} 44. Nh5 {[%clk 0:00:06]}  f3+ {[%clk 0:00:09]} 45. Kf2 {[%clk 0:00:07]}  Kg6 {[%clk 0:00:10]} 46. Nf4+ {[%clk 0:00:07]}  Kf5 {[%clk 0:00:10]} 47. Nd3 {[%clk 0:00:08]}  Ke4 {[%clk 0:00:09]} 48. Nc5+ {[%clk 0:00:06]}  Kd5 {[%clk 0:00:09]} 49. Nd7 {[%clk 0:00:05]}  a5 {[%clk 0:00:08]} 50. Nb8 {[%clk 0:00:04]}  Kc5 {[%clk 0:00:06]} 51. Nd7+ {[%clk 0:00:04]}  Kb4 {[%clk 0:00:06]} 52. Nf8 {[%clk 0:00:04]}  Bh3 {[%clk 0:00:05]} 53. Kxf3 {[%clk 0:00:04]}  Kb3 {[%clk 0:00:05]} 54. Kg3 {[%clk 0:00:04]}  Kxb2 {[%clk 0:00:05]} 55. Kxh3 {[%clk 0:00:04]}  a4 {[%clk 0:00:06]} 56. Nxe6 {[%clk 0:00:05]}  a3 {[%clk 0:00:06]} 57. Nc5 {[%clk 0:00:02]}  a2 {[%clk 0:00:07]} 58. Nd3+ {[%clk 0:00:03]}  Kc3 {[%clk 0:00:06]} 59. e6 {[%clk 0:00:02]}  a1=Q {[%clk 0:00:06]} 60. Nf4 {[%clk 0:00:03]}  Qa6 {[%clk 0:00:04]} 61. Kg4 {[%clk 0:00:03]}  Kd4 {[%clk 0:00:03]} 62. Kf5 {[%clk 0:00:04]}  Qb5+ {[%clk 0:00:03]} 63. Kg6 {[%clk 0:00:03]}  Qe5 {[%clk 0:00:04]} 64. Nh5 {[%clk 0:00:01]}  Qxe6+ {[%clk 0:00:03]} 65. Nf6 {[%clk 0:00:02]}  Ke5 {[%clk 0:00:04]} 66. Kh7 {[%clk 0:00:03]}  Qxf6 {[%clk 0:00:04]} 67. Kg8 {[%clk 0:00:03]}  Qe7 {[%clk 0:00:04]} 68. Kh8 {[%clk 0:00:03]}  Kf6 {[%clk 0:00:05]} 69. Kg8 {[%clk 0:00:03]}  Qg7# {[%clk 0:00:05]} 0-1


[Site "https://www.chess.com"]